[Event "GER-ch Youth U16 2019"]
[Site "Willingen"]
[Date "2019.06.12"]
[Round "6.7"]
[White "Trifan, Andrei Ioan"]
[Black "Hommel, Niclas"]
[Result "1-0"]
[ECO "B63"]
[WhiteElo "2268"]
[BlackElo "1953"]
[Annotator "NA"]
[PlyCount "53"]
[EventDate "2019.06.07"]
[EventType "swiss"]
[EventRounds "9"]
[EventCountry "GER"]
[SourceTitle "playchess.com"]
[Source "ChessBase"]
[SourceQuality "1"]
[TimeControl "40/5400+30:1800+30"]

1. e4 {[%emt 0:00:00]} c5 {[%emt 0:00:00]} 2. Nf3 {[%emt 0:00:00]} d6 {[%emt 0:00:00]} 3. d4 {[%emt 0:00:21]} cxd4 {[%emt 0:00:00]} 4. Nxd4 {[%emt 0:00:05]} Nf6 {[%emt 0:00:00]} 5. Nc3 {[%emt 0:00:21]} Nc6 {[%emt 0:00:00]} 6. Bg5 {[%emt 0:01:41]} e6 {[%emt 0:00:01]} 7. Qd2 {[%emt 0:02:28]} Be7 {[%emt 0:00:06]} 8. O-O-O {[%emt 0:07:52]} Nxd4 {[%emt 0:02:34]} 9. Qxd4 {[%emt 0:00:17]} O-O {[%emt 0:00:03]} 10. Be2 {[%emt 0:02:25]} a6 {[%emt 0:07:12]} 11. f4 {[%emt 0:08:50]} Qa5 {[%emt 0:08:49]} 12. Bh4 {[%emt 0:10:31]} e5 {[%emt 0:07:41]} 13. Qe3 {[%emt 0:07:03]} exf4 {[%emt 0:02:01]} 14. Qxf4 {[%emt 0:01:46]} Be6 {[%emt 0:00:06]} 15. Kb1 {[%emt 0:07:52]} Rfc8 {[%emt 0:09:52]} 16. a3 {[%emt 0:08:12]} Rxc3 {[%emt 0:15:15]} 17. Be1 {[%emt 0:01:51]} Rac8 {[%emt 0:03:34]} 18. Rd3 {[%emt 0:02:49]} Rxd3 {[%emt 0:06:54]} 19. Bxa5 {[%emt 0:00:27]} Rd4 {[%emt 0:00:03]} 20. Bd3 {[%emt 0:07:46]} d5 {[%emt 0:01:31]} 21. Bc3 {[%emt 0:03:48]} Ra4 {[%emt 0:00:11]} 22. Re1 {[%emt 0:01:12]} dxe4 {[%emt 0:02:20]} 23. Bxe4 {[%emt 0:01:50]} b5 {[%emt 0:06:14]} 24. Qf3 {[%emt 0:01:31]} Rxe4 {[%emt 0:02:26]} 25. Rxe4 {[%emt 0:00:18]} Bd5 {[%emt 0:00:08]} 26. Bxf6 {[%emt 0:04:05]} Bxe4 {[%emt 0:00:06]} 27. Qg4 {[%emt 0:00:43] normal} 1-0

[Event "GER-ch Youth U16 2019"]
[Site "Willingen"]
[Date "2019.06.12"]
[Round "6.8"]
[White "Richter, Nils"]
[Black "Liebold, Aaron"]
[Result "1-0"]
[ECO "B52"]
[WhiteElo "2115"]
[BlackElo "1870"]
[Annotator "NA"]
[PlyCount "43"]
[EventDate "2019.06.07"]
[EventType "swiss"]
[EventRounds "9"]
[EventCountry "GER"]
[SourceTitle "playchess.com"]
[Source "ChessBase"]
[SourceQuality "1"]
[TimeControl "40/5400+30:1800+30"]

1. e4 {[%emt 0:00:00]} c5 {[%emt 0:00:00]} 2. Nf3 {[%emt 0:00:00]} d6 {[%emt 0:00:00]} 3. Bb5+ {[%emt 0:00:00]} Bd7 {[%emt 0:01:00]} 4. Bxd7+ {[%emt 0:00:00]} Qxd7 {[%emt 0:00:35]} 5. c4 {[%emt 0:00:00]} Nf6 {[%emt 0:01:39]} 6. Nc3 {[%emt 0:00:02]} g6 {[%emt 0:02:35]} 7. d4 {[%emt 0:00:17]} cxd4 {[%emt 0:00:23]} 8. Nxd4 {[%emt 0:00:08]} Bg7 {[%emt 0:00:11]} 9. f3 {[%emt 0:00:40]} Nc6 {[%emt 0:00:28]} 10. Be3 {[%emt 0:00:42]} O-O {[%emt 0:00:51]} 11. O-O {[%emt 0:00:28]} Rac8 {[%emt 0:08:42]} 12. b3 {[%emt 0:00:55]} Rfe8 {[%emt 0:03:20]} 13. Qd2 {[%emt 0:02:05]} Nxd4 {[%emt 0:05:23]} 14. Bxd4 {[%emt 0:01:41]} Qc6 {[%emt 0:01:22]} 15. Nb5 {[%emt 0:05:46]} Ra8 {[%emt 0:05:46]} 16. a4 {[%emt 0:11:48]} a6 {[%emt 0:02:33]} 17. Nc3 {[%emt 0:01:41]} Rac8 {[%emt 0:04:27]} 18. Rfd1 {[%emt 0:02:54]} Nd7 {[%emt 0:03:54]} 19. Bxg7 {[%emt 0:05:22]} Kxg7 {[%emt 0:01:00]} 20. Nd5 {[%emt 0:02:09]} Qc5+ {[%emt 0:03:40]} 21. Kh1 {[%emt 0:01:39]} Nb6 {[%emt 0:05:22]} 22. b4 {[%emt 0:00:58] normal} 1-0

[Event "GER-ch Youth U16 2019"]
[Site "Willingen"]
[Date "2019.06.12"]
[Round "6.9"]
[White "Fromm, Marius"]
[Black "Rietschel, Tilo"]
[Result "1-0"]
[ECO "E69"]
[WhiteElo "2038"]
[BlackElo "2005"]
[Annotator "NA"]
[PlyCount "45"]
[EventDate "2019.06.07"]
[EventType "swiss"]
[EventRounds "9"]
[EventCountry "GER"]
[SourceTitle "playchess.com"]
[Source "ChessBase"]
[SourceQuality "1"]
[TimeControl "40/5400+30:1800+30"]

1. Nf3 {[%emt 0:00:00]} Nf6 {[%emt 0:00:00]} 2. c4 {[%emt 0:00:00]} g6 {[%emt 0:00:02]} 3. Nc3 {[%emt 0:00:00]} Bg7 {[%emt 0:00:05]} 4. g3 {[%emt 0:00:00]} O-O {[%emt 0:00:10]} 5. Bg2 {[%emt 0:00:00]} d6 {[%emt 0:00:20]} 6. d4 {[%emt 0:00:00]} Nbd7 {[%emt 0:00:15]} 7. O-O {[%emt 0:00:09]} e5 {[%emt 0:00:14]} 8. e4 {[%emt 0:00:16]} c6 {[%emt 0:01:06]} 9. h3 {[%emt 0:01:30]} exd4 {[%emt 0:00:19]} 10. Nxd4 {[%emt 0:00:06]} Re8 {[%emt 0:00:27]} 11. Re1 {[%emt 0:05:10]} a5 {[%emt 0:03:48]} 12. Be3 {[%emt 0:05:46]} Nc5 {[%emt 0:05:33]} 13. Qc2 {[%emt 0:01:07]} Nfd7 {[%emt 0:08:11]} 14. Rad1 {[%emt 0:06:43]} Nb6 {[%emt 0:04:30]} 15. Nb3 {[%emt 0:11:53]} Ne6 {[%emt 0:04:56]} 16. c5 {[%emt 0:06:01]} Nc4 {[%emt 0:03:03]} 17. Na4 {[%emt 0:02:11]} b5 {[%emt 0:14:23]} 18. cxb6 {[%emt 0:00:34]} Ba6 {[%emt 0:02:19]} 19. Bc1 {[%emt 0:08:44]} Rb8 {[%emt 0:09:24]} 20. Nac5 {[%emt 0:06:29]} Nxc5 {[%emt 0:15:46]} 21. Nxc5 {[%emt 0:00:08]} Qxb6 {[%emt 0:02:01]} 22. Nxa6 {[%emt 0:04:27]} Qxa6 {[%emt 0:00:20]} 23. Bf1 {[%emt 0:00:16] normal} 1-0

[Event "GER-ch Youth U16 2019"]
[Site "Willingen"]
[Date "2019.06.12"]
[Round "6.10"]
[White "Roehr, Tobias"]
[Black "Gutkin, Ilya"]
[Result "0-1"]
[ECO "E00"]
[WhiteElo "2208"]
[BlackElo "2041"]
[Annotator "NA"]
[PlyCount "65"]
[EventDate "2019.06.07"]
[EventType "swiss"]
[EventRounds "9"]
[EventCountry "GER"]
[SourceTitle "playchess.com"]
[Source "ChessBase"]
[SourceQuality "1"]
[TimeControl "40/5400+30:1800+30"]

1. d4 {[%emt 0:00:00]} e6 {[%emt 0:00:00]} 2. c4 {[%emt 0:00:00]} Bb4+ {[%emt 0:00:00]} 3. Nd2 {[%emt 0:00:00]} c5 {[%emt 0:01:33]} 4. a3 {[%emt 0:00:01]} Bxd2+ {[%emt 0:00:05]} 5. Qxd2 {[%emt 0:00:05]} cxd4 {[%emt 0:00:12]} 6. Nf3 {[%emt 0:00:11]} Nf6 {[%emt 0:00:06]} 7. Nxd4 {[%emt 0:00:19]} d5 {[%emt 0:05:59]} 8. e3 {[%emt 0:08:31]} O-O {[%emt 0:02:31]} 9. cxd5 {[%emt 0:00:33]} Qxd5 {[%emt 0:02:59]} 10. Nb5 {[%emt 0:00:29]} Qxd2+ {[%emt 0:08:00]} 11. Bxd2 {[%emt 0:00:20]} Nc6 {[%emt 0:00:31]} 12. Be2 {[%emt 0:12:47]} Ne4 {[%emt 0:11:28]} 13. Bb4 {[%emt 0:02:31]} Nxb4 {[%emt 0:09:56]} 14. axb4 {[%emt 0:00:03]} a6 {[%emt 0:01:53]} 15. Nc7 {[%emt 0:06:30]} Rb8 {[%emt 0:01:10]} 16. Rd1 {[%emt 0:04:02]} Nf6 {[%emt 0:04:12]} 17. b5 {[%emt 0:05:26]} Bd7 {[%emt 0:02:14]} 18. b6 {[%emt 0:08:28]} Bc6 {[%emt 0:04:57]} 19. Bf3 {[%emt 0:02:59]} Bxf3 {[%emt 0:00:36]} 20. gxf3 {[%emt 0:00:06]} Rfd8 {[%emt 0:01:07]} 21. Ke2 {[%emt 0:04:31]} Kf8 {[%emt 0:04:37]} 22. f4 {[%emt 0:06:40]} g6 {[%emt 0:05:14]} 23. Rd4 {[%emt 0:04:21]} Rxd4 {[%emt 0:01:33]} 24. exd4 {[%emt 0:00:03]} Rd8 {[%emt 0:01:00]} 25. Rc1 {[%emt 0:01:39]} Ke7 {[%emt 0:03:02]} 26. Rc4 {[%emt 0:02:17]} Kd6 {[%emt 0:06:27]} 27. Kd3 {[%emt 0:12:41]} Nd7 {[%emt 0:03:14]} 28. Rb4 {[%emt 0:00:07]} Kc6 {[%emt 0:02:00]} 29. Ke4 {[%emt 0:01:22]} Nxb6 {[%emt 0:01:18]} 30. Nxe6 {[%emt 0:00:04]} fxe6 {[%emt 0:00:53]} 31. Ke5 {[%emt 0:00:04]} Re8 {[%emt 0:06:26]} 32. h4 {[%emt 0:00:19]} Nd7+ {[%emt 0:01:15]} 33. Ke4 {normal Kd5+} 0-1

[Event "GER-ch Youth U16 2019"]
[Site "Willingen"]
[Date "2019.06.12"]
[Round "6.11"]
[White "Biermann, Florian"]
[Black "Boder, Jan"]
[Result "0-1"]
[ECO "A20"]
[WhiteElo "2018"]
[BlackElo "2123"]
[Annotator "ChessBase"]
[PlyCount "124"]
[EventDate "2019.06.07"]
[EventType "swiss"]
[EventRounds "9"]
[EventCountry "GER"]
[SourceTitle "playchess.com"]
[Source "ChessBase"]
[SourceQuality "1"]
[TimeControl "40/5400+30:1800+30"]

1. c4 {[%emt 0:00:00]} e5 {[%emt 0:00:00]} 2. g3 {[%emt 0:00:00]} Nf6 {[%emt 0:00:00]} 3. Bg2 {[%emt 0:00:00]} d5 {[%emt 0:00:05]} 4. cxd5 Nxd5 5. Nf3 {[%emt 0:00:44]} Nc6 {[%emt 0:00:39]} 6. O-O {[%emt 0:00:10]} Nb6 {[%emt 0:00:07]} 7. Nc3 {[%emt 0:00:19]} Be7 {[%emt 0:00:07]} 8. Rb1 {[%emt 0:00:37]} g5 {[%emt 0:00:35]} 9. d3 {[%emt 0:07:58]} g4 {[%emt 0:02:00]} 10. Nd2 {[%emt 0:01:40]} h5 {[%emt 0:02:15]} 11. Nc4 {[%emt 0:03:50]} Nxc4 {[%emt 0:01:01]} 12. dxc4 {[%emt 0:02:13]} Qxd1 {[%emt 0:00:05]} 13. Rxd1 {[%emt 0:00:56]} Nd4 {[%emt 0:00:32]} 14. Be3 {[%emt 0:09:30]} Bf5 {[%emt 0:08:19]} 15. Rbc1 {[%emt 0:11:11]} O-O-O {[%emt 0:00:23]} 16. Kf1 {[%emt 0:04:36]} c6 {[%emt 0:03:05]} 17. Ne4 {[%emt 0:09:53]} h4 {[%emt 0:04:42]} 18. Rd2 {[%emt 0:02:25]} hxg3 {[%emt 0:01:16]} 19. hxg3 {[%emt 0:00:49]} Rh2 {[%emt 0:02:59]} 20. Nc3 {[%emt 0:05:27]} Be6 {[%emt 0:07:32]} 21. Nd5 {[%emt 0:07:38]} Bc5 {[%emt 0:17:27]} 22. b4 {[%emt 0:12:38]} Bxd5 {[%emt 0:16:37]} 23. cxd5 {[%emt 0:02:21]} Bxb4 {[%emt 0:00:28]} 24. Rd3 {[%emt 0:01:04]} Rdh8 {[%emt 0:11:15]} 25. Bxd4 {[%emt 0:06:01]} Rh1+ {[%emt 0:01:10]} 26. Bxh1 {[%emt 0:00:06]} Rxh1+ {[%emt 0:00:08]} 27. Kg2 {[%emt 0:00:06]} Rxc1 {[%emt 0:00:06]} 28. Bxe5 {[%emt 0:02:48]} c5 {[%emt 0:02:08]} 29. d6 {[%emt 0:01:38]} Kd7 {[%emt 0:02:15]} 30. Bf4 {[%emt 0:00:57]} Rc3 {[%emt 0:00:08]} 31. Rd5 {[%emt 0:01:32]} Ba5 {[%emt 0:05:24]} 32. a4 {[%emt 0:01:33]} Rc4 {[%emt 0:04:52]} 33. Rf5 {[%emt 0:02:04]} Ke6 {[%emt 0:00:47]} 34. Rh5 {[%emt 0:00:23]} Bb6 {[%emt 0:02:20]} 35. Rh8 {[%emt 0:00:51]} Rxa4 {[%emt 0:02:39]} 36. Re8+ {[%emt 0:00:12]} Kd7 {[%emt 0:00:22]} 37. Re7+ {[%emt 0:00:16]} Kc6 {[%emt 0:00:07]} 38. Rxf7 {[%emt 0:00:58]} c4 {[%emt 0:00:44]} 39. Rf8 {[%emt 0:00:42]} Ba5 {[%emt 0:02:53]} 40. e4 {[%emt 0:01:54]} c3 {[%emt 0:01:26]} 41. e5 {[%emt 0:31:23]} Re4 {[%emt 0:30:42]} 42. Rc8+ {[%emt 0:00:00]} Kd7 {[%emt 0:00:00]} 43. Rc5 {[%emt 0:00:00]} b5 {[%emt 0:00:00]} 44. Rxb5 {[%emt 0:00:00]} Bb6 {[%emt 0:00:00]} 45. Rb3 {[%emt 0:00:00]} c2 {[%emt 0:00:00]} 46. Rc3 {[%emt 0:00:00]} Re2 {[%emt 0:00:00]} 47. Kh1 {[%emt 0:00:00]} Rxf2 {[%emt 0:00:00]} 48. Bg5 {[%emt 0:00:00]} Ke6 {[%emt 0:00:00]} 49. Rc8 {[%emt 0:00:15]} Kd7 {[%emt 0:00:00]} 50. Rg8 {[%emt 0:01:59]} c1=Q+ {[%emt 0:00:00]} 51. Bxc1 {[%emt 0:00:05]} Rf1+ {[%emt 0:00:00]} 52. Kg2 {[%emt 0:00:06]} Rg1+ {[%emt 0:00:00]} 53. Kh2 {[%emt 0:00:05]} Rxc1 {[%emt 0:00:00]} 54. Rg7+ {[%emt 0:00:10]} Ke6 {[%emt 0:00:00]} 55. Re7+ {[%emt 0:00:11]} Kf5 {[%emt 0:00:00]} 56. d7 {[%emt 0:01:20]} Ke4 {[%emt 0:00:00]} 57. Re8 {[%emt 0:03:08]} Rc2+ {[%emt 0:00:00]} 58. Kh1 {[%emt 0:00:04]} Kf3 {[%emt 0:00:00]} 59. d8=Q {[%emt 0:00:27]} Rc1+ {[%emt 0:00:00]} 60. Kh2 {[%emt 0:00:03]} Bg1+ {[%emt 0:00:00]} 61. Kh1 {[%emt 0:00:11]} Bf2+ {[%emt 0:00:00]} 62. Kh2 {[%emt 0:00:24]} Bxg3# {normal} 0-1

[Event "GER-ch Youth U16 2019"]
[Site "Willingen"]
[Date "2019.06.12"]
[Round "6.12"]
[White "Huber, Benedikt"]
[Black "Pahl, Erik"]
[Result "1-0"]
[ECO "E62"]
[WhiteElo "2051"]
[BlackElo "2113"]
[Annotator "NA"]
[PlyCount "52"]
[EventDate "2019.06.07"]
[EventType "swiss"]
[EventRounds "9"]
[EventCountry "GER"]
[SourceTitle "playchess.com"]
[Source "ChessBase"]
[SourceQuality "1"]
[TimeControl "40/5400+30:1800+30"]

1. d4 {[%emt 0:00:00]} Nf6 {[%emt 0:00:00]} 2. c4 {[%emt 0:00:00]} g6 {[%emt 0:00:00]} 3. Nf3 {[%emt 0:00:00]} Bg7 {[%emt 0:00:00]} 4. g3 {[%emt 0:00:00]} d6 {[%emt 0:00:00]} 5. Bg2 {[%emt 0:00:00]} O-O {[%emt 0:00:06]} 6. O-O {[%emt 0:00:02]} Nc6 {[%emt 0:00:05]} 7. Nc3 {[%emt 0:00:09]} e5 {[%emt 0:00:06]} 8. h3 {[%emt 0:03:58]} exd4 {[%emt 0:13:35]} 9. Nxd4 {[%emt 0:01:22]} Nxd4 {[%emt 0:00:53]} 10. Qxd4 {[%emt 0:00:08]} Nd7 {[%emt 0:00:24]} 11. Qd1 {[%emt 0:01:17]} Nc5 {[%emt 0:00:35]} 12. Be3 {[%emt 0:00:54]} Bxc3 {[%emt 0:04:59]} 13. bxc3 {[%emt 0:00:19]} Rb8 {[%emt 0:01:18]} 14. Bh6 {[%emt 0:16:09]} Re8 {[%emt 0:00:42]} 15. Qd4 {[%emt 0:00:05]} f6 {[%emt 0:00:18]} 16. f4 {[%emt 0:01:08]} Ne6 {[%emt 0:04:00]} 17. Qxa7 {[%emt 0:05:03]} Bd7 {[%emt 0:02:04]} 18. Qf2 {[%emt 0:00:24]} Nc5 {[%emt 0:02:03]} 19. g4 {[%emt 0:03:57]} Qe7 {[%emt 0:06:18]} 20. f5 {[%emt 0:13:29]} gxf5 {[%emt 0:02:47]} 21. Qh4 {[%emt 0:11:39]} Qf7 {[%emt 0:07:06]} 22. Bd5 {[%emt 0:08:50]} Be6 {[%emt 0:00:23]} 23. Rxf5 {[%emt 0:00:06]} Nd7 {[%emt 0:03:22]} 24. Raf1 {[%emt 0:06:42]} Bxd5 {[%emt 0:01:02]} 25. cxd5 {[%emt 0:01:48]} Re5 {[%emt 0:01:32] normal} 26. Rxe5 {[%emt 0:04:57]} dxe5 {[%emt 0:00:17] normal} 1-0

[Event "GER-ch Youth U16 2019"]
[Site "Willingen"]
[Date "2019.06.12"]
[Round "6.13"]
[White "Koehler, Lukas"]
[Black "Burian, Simon"]
[Result "1/2-1/2"]
[ECO "B20"]
[WhiteElo "2068"]
[BlackElo "2001"]
[Annotator "NA"]
[PlyCount "55"]
[EventDate "2019.06.07"]
[EventType "swiss"]
[EventRounds "9"]
[EventCountry "GER"]
[SourceTitle "playchess.com"]
[Source "ChessBase"]
[SourceQuality "1"]
[TimeControl "40/5400+30:1800+30"]

1. e4 {[%emt 0:00:00]} c5 {[%emt 0:00:00]} 2. d3 {[%emt 0:00:00]} Nc6 {[%emt 0:00:07]} 3. g3 {[%emt 0:00:33]} g6 {[%emt 0:00:17]} 4. Bg2 {[%emt 0:00:07]} Bg7 {[%emt 0:00:11]} 5. f4 {[%emt 0:00:13]} e5 {[%emt 0:02:12]} 6. c3 {[%emt 0:01:53]} d6 {[%emt 0:02:39]} 7. Nf3 {[%emt 0:00:38]} Nge7 {[%emt 0:01:13]} 8. O-O {[%emt 0:01:36]} O-O {[%emt 0:01:50]} 9. a4 {[%emt 0:03:26]} a6 {[%emt 0:03:07]} 10. Be3 {[%emt 0:07:59]} Qc7 {[%emt 0:02:53]} 11. Na3 {[%emt 0:01:58]} Rb8 {[%emt 0:03:52]} 12. Nc2 {[%emt 0:09:21]} f5 {[%emt 0:06:34]} 13. fxe5 {[%emt 0:04:35]} Nxe5 {[%emt 0:02:51]} 14. Bf4 {[%emt 0:13:59]} Qb6 {[%emt 0:04:08]} 15. Rb1 {[%emt 0:06:54]} fxe4 {[%emt 0:11:10]} 16. dxe4 {[%emt 0:03:03]} Be6 {[%emt 0:05:05]} 17. b4 {[%emt 0:11:49]} cxb4+ {[%emt 0:06:33]} 18. Be3 {[%emt 0:01:53]} Qc7 {[%emt 0:00:16]} 19. cxb4 {[%emt 0:02:21]} Bc4 {[%emt 0:01:22]} 20. Re1 {[%emt 0:06:06]} Nd3 {[%emt 0:03:23]} 21. Re2 {[%emt 0:01:51]} Nb2 {[%emt 0:00:17]} 22. Qe1 {[%emt 0:04:48]} Bxe2 {[%emt 0:00:52]} 23. Qxe2 {[%emt 0:00:03]} Nxa4 {[%emt 0:00:23]} 24. Ncd4 {[%emt 0:01:36]} Nc3 {[%emt 0:04:13]} 25. Qc2 {[%emt 0:00:22]} Qc4 {[%emt 0:09:41]} 26. Bf1 {[%emt 0:07:44]} Qc8 {[%emt 0:04:11]} 27. Rc1 {[%emt 0:00:42]} Kh8 {[%emt 0:00:33]} 28. Qd3 {[%emt 0:03:14] normal} 1/2-1/2

[Event "GER-ch Youth U16 2019"]
[Site "Willingen"]
[Date "2019.06.12"]
[Round "6.14"]
[White "Buller, Ian Joshua"]
[Black "Jeschke, Jan"]
[Result "1-0"]
[ECO "C06"]
[WhiteElo "1904"]
[BlackElo "1915"]
[Annotator "NA"]
[PlyCount "87"]
[EventDate "2019.06.07"]
[EventType "swiss"]
[EventRounds "9"]
[EventCountry "GER"]
[SourceTitle "playchess.com"]
[Source "ChessBase"]
[SourceQuality "1"]
[TimeControl "40/5400+30:1800+30"]

1. e4 {[%emt 0:00:00]} e6 {[%emt 0:00:00]} 2. d4 {[%emt 0:00:00]} d5 {[%emt 0:00:00]} 3. Nd2 {[%emt 0:00:00]} Nf6 {[%emt 0:00:36]} 4. e5 {[%emt 0:00:00]} Nfd7 {[%emt 0:00:07]} 5. Bd3 {[%emt 0:00:13]} c5 {[%emt 0:00:20]} 6. c3 {[%emt 0:00:11]} Nc6 {[%emt 0:00:15]} 7. Ne2 {[%emt 0:00:14]} cxd4 {[%emt 0:00:16]} 8. cxd4 {[%emt 0:00:08]} f6 {[%emt 0:00:18]} 9. exf6 {[%emt 0:00:19]} Nxf6 {[%emt 0:00:07]} 10. O-O {[%emt 0:00:41]} Bd6 {[%emt 0:00:33]} 11. Nf3 {[%emt 0:00:27]} Qc7 {[%emt 0:00:19]} 12. h3 {[%emt 0:00:28]} O-O {[%emt 0:00:15]} 13. Re1 {[%emt 0:00:31]} Bd7 {[%emt 0:00:50]} 14. Be3 {[%emt 0:00:14]} Be8 {[%emt 0:01:31]} 15. Rc1 {[%emt 0:03:07]} Qe7 {[%emt 0:08:41]} 16. Nc3 {[%emt 0:01:44]} Bh5 {[%emt 0:06:12]} 17. Be2 {[%emt 0:05:59]} Rae8 {[%emt 0:01:21]} 18. Bg5 {[%emt 0:41:17]} Bb8 {[%emt 0:06:20]} 19. Ne5 {[%emt 0:07:48]} Bxe2 {[%emt 0:01:28]} 20. Rxe2 {[%emt 0:00:13]} a6 {[%emt 0:02:44]} 21. Qd2 {[%emt 0:12:19]} Ba7 {[%emt 0:17:49]} 22. Nf3 {[%emt 0:04:42]} Qb4 {[%emt 0:07:09]} 23. Bxf6 {[%emt 0:04:12]} gxf6 {[%emt 0:01:39]} 24. a3 {[%emt 0:01:25]} Qd6 {[%emt 0:00:30]} 25. Nd1 {[%emt 0:03:28]} e5 {[%emt 0:03:54]} 26. Ne3 {[%emt 0:03:02]} Ne7 {[%emt 0:03:21]} 27. dxe5 {[%emt 0:02:01]} fxe5 {[%emt 0:00:13]} 28. Ng4 {[%emt 0:00:19]} Ng6 {[%emt 0:02:20]} 29. Qg5 {[%emt 0:00:55]} Qe7 {[%emt 0:00:30]} 30. Qh6 {[%emt 0:01:06]} e4 {[%emt 0:02:35]} 31. Ng5 {[%emt 0:00:31]} Rf5 {[%emt 0:02:08]} 32. h4 {[%emt 0:01:20]} Bb8 {[%emt 0:19:32]} 33. g3 {[%emt 0:02:50]} Rff8 {[%emt 0:00:58]} 34. Rd1 {[%emt 0:02:34]} Rd8 {[%emt 0:00:24]} 35. Red2 {[%emt 0:00:22]} Rd6 {[%emt 0:06:49]} 36. Rxd5 {[%emt 0:00:42]} Ne5 {[%emt 0:00:47]} 37. Rxd6 {[%emt 0:00:32]} Nxg4 {[%emt 0:01:13]} 38. Qe6+ {[%emt 0:01:06]} Qxe6 {[%emt 0:00:05]} 39. Rxe6 {[%emt 0:00:05]} Nxf2 {[%emt 0:00:22]} 40. Rd7 {[%emt 0:00:51]} Ba7 {[%emt 0:00:33]} 41. Kg2 {[%emt 0:31:05]} Ng4 {[%emt 0:30:59]} 42. Nxe4 {[%emt 0:00:00]} h5 {[%emt 0:00:00]} 43. Ree7 {[%emt 0:00:00]} Ne3+ {[%emt 0:00:00]} 44. Kh3 {[%emt 0:00:00] normal} 1-0

[Event "GER-ch Youth U16 2019"]
[Site "Willingen"]
[Date "2019.06.13"]
[Round "7.1"]
[White "Stork, Oliver"]
[Black "Wachinger, Nikolas"]
[Result "0-1"]
[ECO "A45"]
[WhiteElo "2224"]
[BlackElo "2311"]
[Annotator "NA"]
[PlyCount "118"]
[EventDate "2019.06.07"]
[EventType "swiss"]
[EventRounds "9"]
[EventCountry "GER"]
[SourceTitle "playchess.com"]
[Source "ChessBase"]
[SourceQuality "1"]
[TimeControl "40/5400+30:1800+30"]

1. d4 {[%emt 0:00:00]} Nf6 {[%emt 0:00:00]} 2. Bf4 {[%emt 0:00:00]} d5 {[%emt 0:00:27]} 3. e3 {[%emt 0:00:00]} c5 {[%emt 0:00:21]} 4. c3 {[%emt 0:00:00]} Nc6 {[%emt 0:00:08]} 5. Nd2 {[%emt 0:00:00]} e6 {[%emt 0:00:23]} 6. Ngf3 {[%emt 0:00:06]} cxd4 {[%emt 0:00:06]} 7. exd4 {[%emt 0:00:07]} Nh5 {[%emt 0:00:06]} 8. Be3 {[%emt 0:00:07]} Bd6 {[%emt 0:00:28]} 9. Ne5 {[%emt 0:00:25]} g6 {[%emt 0:00:08]} 10. g4 {[%emt 0:00:17]} Ng7 {[%emt 0:00:03]} 11. h4 {[%emt 0:00:19]} h5 {[%emt 0:00:36]} 12. Bg5 {[%emt 0:00:20]} Be7 {[%emt 0:03:11]} 13. Bb5 {[%emt 0:07:21]} Bd7 {[%emt 0:08:11]} 14. Bxc6 {[%emt 0:08:41]} Bxc6 {[%emt 0:03:25]} 15. Qf3 {[%emt 0:01:41]} Rf8 {[%emt 0:04:28]} 16. Bh6 {[%emt 0:06:54]} hxg4 {[%emt 0:00:58]} 17. Qxg4 {[%emt 0:24:31]} Rg8 {[%emt 0:03:53]} 18. h5 {[%emt 0:07:29]} gxh5 {[%emt 0:24:06]} 19. Rxh5 {[%emt 0:09:44]} Bf6 {[%emt 0:00:27]} 20. Bxg7 {[%emt 0:09:18]} Bxg7 {[%emt 0:01:00]} 21. Rg5 {[%emt 0:01:38]} Qf6 {[%emt 0:05:09]} 22. O-O-O {[%emt 0:01:41]} Kf8 {[%emt 0:04:46]} 23. f4 {[%emt 0:03:46]} Rh8 {[%emt 0:08:03]} 24. Rg1 {[%emt 0:10:34]} Bh6 {[%emt 0:00:56]} 25. Rg8+ {[%emt 0:00:08]} Ke7 {[%emt 0:00:02]} 26. Rxa8 {[%emt 0:00:15]} Rxa8 {[%emt 0:00:08]} 27. f5 {[%emt 0:01:38]} Be3 {[%emt 0:01:51]} 28. Rf1 {[%emt 0:02:09]} Bb5 {[%emt 0:01:19]} 29. Rh1 {[%emt 0:02:48]} Qxf5 {[%emt 0:02:35]} 30. Qxf5 {[%emt 0:01:36]} exf5 {[%emt 0:00:02]} 31. Rh7 {[%emt 0:00:35]} Be8 {[%emt 0:00:07]} 32. Kc2 {[%emt 0:00:23]} Ke6 {[%emt 0:02:38]} 33. Kd3 {[%emt 0:00:57]} f4 {[%emt 0:01:11]} 34. Ndf3 {[%emt 0:00:51]} f6 {[%emt 0:00:19]} 35. Rh6 {[%emt 0:00:03]} Kf5 {[%emt 0:01:10]} 36. Rh7 {[%emt 0:01:06]} fxe5 {[%emt 0:00:11]} 37. Nxe5 {[%emt 0:00:08]} Bb5+ {[%emt 0:00:23]} 38. Kc2 {[%emt 0:00:03]} b6 {[%emt 0:00:33]} 39. b3 {[%emt 0:00:09]} Be2 {[%emt 0:00:21]} 40. Rf7+ {[%emt 0:01:27]} Ke6 {[%emt 0:00:17]} 41. Rh7 {[%emt 0:01:15]} f3 {[%emt 0:02:40]} 42. Ng4 {[%emt 0:00:09]} Bf4 {[%emt 0:00:47]} 43. Rg7 {[%emt 0:01:35]} Kf5 {[%emt 0:00:38]} 44. Nf2 {[%emt 0:00:10]} Rh8 {[%emt 0:00:36]} 45. Rf7+ {[%emt 0:00:07]} Kg5 {[%emt 0:00:06]} 46. Rg7+ {[%emt 0:01:09]} Kf6 {[%emt 0:00:02]} 47. Rxa7 {[%emt 0:00:21]} Bg3 {[%emt 0:00:53]} 48. Ng4+ {[%emt 0:00:28]} Kg5 {[%emt 0:00:31]} 49. Rg7+ {[%emt 0:01:42]} Kf4 {[%emt 0:00:22]} 50. Nf6 {[%emt 0:00:36]} f2 {[%emt 0:00:14]} 51. Nxd5+ {[%emt 0:00:16]} Ke4 {[%emt 0:00:18]} 52. Nf6+ {[%emt 0:00:33]} Kf3 {[%emt 0:00:20]} 53. Nd5 {[%emt 0:01:03]} f1=Q {[%emt 0:00:41]} 54. Rf7+ {[%emt 0:00:03]} Ke4 {[%emt 0:00:10]} 55. Rxf1 {[%emt 0:00:08]} Bxf1 {[%emt 0:00:05]} 56. Nxb6 {[%emt 0:00:05]} Rh2+ {[%emt 0:00:08]} 57. Kb1 {[%emt 0:00:09]} Bd3+ {[%emt 0:00:12]} 58. Ka1 {[%emt 0:00:03]} Be1 {[%emt 0:00:25]} 59. Na4 {[%emt 0:00:08]} Bb5 {[%emt 0:00:37] normal} 0-1